[Event "CCT Julius Baer-D3 2024"]
[Site "Online"]
[Date "2024.09.27"]
[Round "2"]
[White "Caruana, Fabiano"]
[Black "Alekseenko, Kirill"]
[Result "1-0"]
[ECO "A20"]
[WhiteElo "2798"]
[BlackElo "2679"]
[Annotator "TA"]
[PlyCount "81"]
[EventDate "2024.09.25"]
[EventType "swiss"]
[EventCountry "NET"]
[SourceTitle "playchess.com"]
[Source "ChessBase"]
[SourceQuality "1"]
[TimeControl "600+2"]

{[%evp 14,81,36,-13,-14,-18,-13,-21,-25,-27,0,0,0,0,0,-7,16,0,0,0,-7,0,0,0,0,0,19,12,14,24,20,18,17,23,32,42,3,0,9,0,0,0,0,-29,0,0,49,25,173,175,173,173,211,199,352,354,699,685,695,775,1264,1264,6303,6211,29964,29966,29968,29968,29962,5815]} 1. c4 {[%emt 0:00:04]} e5 {[%emt 0:00:14]} 2. d3 {[%emt 0:00:07]} Bb4+ {[%emt 0:00:03]} 3. Nd2 {[%emt 0:00:02]} c5 {[%emt 0:00:03]} 4. Ngf3 {[%emt 0:00:03]} d6 $146 {[%emt 0:00:06]} ({Predecessor:} 4... Nc6 5. g3 d6 6. Bg2 Nge7 7. O-O Ba5 8. b3 O-O 9. Bb2 h6 10. e3 Be6 {1-0 Caruana,F (2796)-Firouzja,A (2744) Bucharest Superbet Classic 4th playoff rapid 2024 (2)}) 5. g3 {[%emt 0:00:01]} f5 {[%emt 0:00:03]} 6. Bg2 {[%emt 0:00:11] A20: English Opening: 1...e5.} Nf6 {[%emt 0:00:01]} 7. O-O {[%emt 0:00:13]} Ba5 {[%emt 0:00:12]} 8. Nb1 {[%emt 0:00:22]} (8. Nb3 $14 {is superior.}) 8... O-O $11 {[%emt 0:00:08]} 9. Bg5 {[%emt 0:00:06]} h6 {[%emt 0:00:11]} 10. Bxf6 {[%emt 0:00:02]} Qxf6 {[%emt 0:00:00]} 11. Nc3 {[%emt 0:00:09]} Nc6 {[%emt 0:00:04]} 12. Nd5 {[%emt 0:00:07]} Qf7 {[%emt 0:00:03]} 13. e3 {[%emt 0:00:28]} Be6 {[%emt 0:00:20]} 14. a3 {[%emt 0:00:04]} Ne7 {[%emt 0:00:59]} 15. Nxe7+ {[%emt 0:00:38]} Qxe7 {[%emt 0:00:01]} 16. Rb1 {[%emt 0:00:02]} Rab8 {[%emt 0:01:07]} 17. b4 {[%emt 0:00:03]} Bc7 {[%emt 0:00:21]} 18. bxc5 {[%emt 0:00:55]} dxc5 {[%emt 0:00:03]} 19. Nh4 {[%emt 0:00:06]} Rfd8 {[%emt 0:00:07]} 20. Bd5 $1 {[%emt 0:00:35]} (20. Bxb7 g5 21. Ng2 (21. Ng6 $2 Qe8 $19) 21... Bxc4 $15) (20. Rxb7 Rxb7 21. Bxb7 g5 $15) 20... Bxd5 {[%emt 0:00:39]} 21. cxd5 {[%emt 0:00:00]} Qf7 {[%emt 0:00:18]} 22. e4 {[%emt 0:00:03]} fxe4 {[%emt 0:00:02]} 23. dxe4 {[%emt 0:00:00]} b5 {[%emt 0:00:08]} 24. a4 {[%emt 0:00:28]} a6 {[%emt 0:00:04]} 25. axb5 {[%emt 0:00:06]} axb5 {[%emt 0:00:00]} 26. Nf5 {[%emt 0:00:01]} c4 {[%emt 0:00:03]} 27. Qc1 {[%emt 0:00:50]} Kh7 {[%emt 0:00:07]} 28. Rd1 {[%emt 0:00:06]} Bb6 {[%emt 0:00:21]} 29. Kg2 {[%emt 0:00:33]} Bc5 {[%emt 0:00:08]} (29... Qd7 $11) 30. d6 $1 $14 {[%emt 0:00:03]} Bd4 {[%emt 0:01:44]} (30... b4 $6 31. Rd5 Bxf2 32. Kxf2 $18) (30... Rb6 $1 $11 {and Black has nothing to worry.}) 31. Nxd4 $18 {[%emt 0:00:02]} exd4 {[%emt 0:00:02]} 32. Rxd4 {[%emt 0:00:00]} Qe6 {[%emt 0:00:08] [#]} 33. Qf4 $1 {[%emt 0:01:28]} c3 $2 {[%emt 0:01:10]} (33... g5 {was necessary.} 34. Qd2 Rb6 (34... Rxd6 $2 35. Rxd6 Qe5 36. Rd5 $18)) 34. e5 $18 {[%emt 0:00:03]} Rdc8 $2 {[%emt 0:00:10]} (34... Rbc8 35. Qe4+ (35. Rxb5 c2 $14) 35... Kh8) 35. d7 $18 {[%emt 0:00:26]} Rd8 {[%emt 0:00:01]} 36. Rd6 {[%emt 0:00:02]} Qa2 {[%emt 0:00:11]} 37. Qe4+ {[%emt 0:00:06]} Kh8 {[%emt 0:00:02]} 38. e6 {[%emt 0:00:05]} c2 {[%emt 0:00:05]} 39. Re1 {[%emt 0:00:16]} Qa3 {[%emt 0:00:49]} 40. e7 {[%emt 0:00:11]} Qxd6 {[%emt 0:00:04]} 41. e8=Q+ {[%emt 0:00:01]} ({Stronger than} 41. e8=B b4 42. Qxc2 b3 $17) 1-0

[Event "CCT Julius Baer-D3 2024"]
[Site "Online"]
[Date "2024.09.27"]
[Round "2"]
[White "Niemann, Hans Moke"]
[Black "Yoo, Christopher Woojin"]
[Result "1/2-1/2"]
[ECO "C42"]
[WhiteElo "2733"]
[BlackElo "2603"]
[Annotator "TA"]
[PlyCount "127"]
[EventDate "2024.09.25"]
[EventType "swiss"]
[EventCountry "NET"]
[SourceTitle "playchess.com"]
[Source "ChessBase"]
[SourceQuality "1"]
[TimeControl "600+2"]

{[%evp 48,127,91,98,86,102,97,82,98,105,126,134,167,162,158,159,137,152,195,204,185,166,165,172,171,183,185,160,194,194,200,187,270,254,311,225,241,230,229,8,8,8,8,-7,-7,-7,-7,-8,-8,-9,-8,-17,-16,-21,-9,-71,-70,-70,-8,-16,0,-8,0,-13,-13,-15,-14,-77,-8,-54,0,-8,0,0,0,0,8,0,0,0,8,8]} 1. e4 {[%emt 0:00:02]} e5 {[%emt 0:00:06]} 2. Nf3 {[%emt 0:00:02]} Nf6 {[%emt 0:00:01]} 3. Nxe5 {[%emt 0:00:19]} d6 {[%emt 0:00:02]} 4. Nf3 {[%emt 0:00:01]} Nxe4 {[%emt 0:00:01]} 5. Qe2 {[%emt 0:00:00]} Qe7 {[%emt 0:00:04]} 6. g3 {[%emt 0:00:01] C42: Petroff Defence: 3 Nxe5 and unusual White 3rd moves.} Nf6 {[%emt 0:00:24]} 7. Bg2 {[%emt 0:00:06]} Qxe2+ {[%emt 0:00:08]} 8. Kxe2 {[%emt 0:00:00]} Be7 {[%emt 0:00:38]} 9. Re1 {[%emt 0:00:02]} O-O {[%emt 0:00:01]} 10. Kf1 {[%emt 0:00:01]} Bd8 $146 {[%emt 0:00:17]} ({Predecessor:} 10... Re8 11. b4 Na6 12. a3 c6 13. Bb2 Nc7 14. Nc3 Bd7 15. d3 Bf8 16. Ne2 Nh5 {½-½ Subelj,J (2512)-Indjic,A (2589) EU-ch Rapid Zagreb 2023 (4)}) 11. d3 {[%emt 0:00:07]} d5 {[%emt 0:01:00]} 12. Nc3 {[%emt 0:00:03]} c6 {[%emt 0:00:16]} 13. Bf4 {[%emt 0:00:02]} Bg4 {[%emt 0:00:42]} 14. Nd4 {[%emt 0:00:41]} Bb6 {[%emt 0:00:06]} 15. Nb3 {[%emt 0:00:01]} Nbd7 {[%emt 0:00:11]} 16. Na4 {[%emt 0:00:06]} Rfe8 {[%emt 0:01:26]} 17. Nxb6 {[%emt 0:00:16]} axb6 {[%emt 0:00:01]} 18. h3 {[%emt 0:00:01]} Rxe1+ {[%emt 0:00:08]} 19. Kxe1 {[%emt 0:00:02]} Be6 {[%emt 0:00:04]} 20. Nd4 {[%emt 0:00:06]} Nc5 {[%emt 0:00:12]} 21. Kd2 {[%emt 0:00:23]} b5 {[%emt 0:00:08]} 22. Bd6 {[%emt 0:00:11]} Ncd7 {[%emt 0:00:20]} 23. f4 {[%emt 0:00:06]} Ne8 {[%emt 0:00:12]} 24. Be7 {[%emt 0:00:13]} Nb6 {[%emt 0:00:31]} 25. f5 {[%emt 0:00:06]} Nc8 {[%emt 0:00:06]} 26. Bg5 {[%emt 0:00:44]} Bd7 {[%emt 0:00:02]} 27. g4 {[%emt 0:00:01]} Ncd6 {[%emt 0:00:05]} 28. a3 {[%emt 0:00:13]} b4 {[%emt 0:00:16] [#]} 29. a4 $1 {[%emt 0:00:10]} b6 {[%emt 0:00:17]} 30. b3 {[%emt 0:00:06]} f6 {[%emt 0:00:32]} 31. Bf4 {[%emt 0:00:17]} Kf7 {[%emt 0:00:04]} 32. Re1 {[%emt 0:00:04]} g6 {[%emt 0:00:11]} 33. fxg6+ {[%emt 0:00:02]} hxg6 {[%emt 0:00:00]} 34. Kc1 {[%emt 0:00:15]} g5 {[%emt 0:00:10]} 35. Bd2 {[%emt 0:00:01]} Nc7 {[%emt 0:01:13]} 36. Bxb4 {[%emt 0:00:02]} c5 {[%emt 0:00:01]} 37. Ba3 {[%emt 0:00:00]} Re8 {[%emt 0:00:19]} 38. Rxe8 {[%emt 0:00:05]} Ndxe8 {[%emt 0:00:21]} 39. Ne2 {[%emt 0:00:17]} Bc6 {[%emt 0:00:18]} (39... Ke6 $142 40. a5 bxa5 41. Bxc5 a4 42. bxa4 Bxa4) 40. d4 {[%emt 0:00:02]} Ne6 {[%emt 0:00:10]} 41. a5 {[%emt 0:00:17]} bxa5 {[%emt 0:00:02]} 42. Bxc5 {[%emt 0:00:01]} ({Don't do} 42. dxc5 $6 N8c7 43. c3 a4 $16 (43... Nb5 44. c4 $16)) 42... N8c7 {[%emt 0:00:04]} 43. Nc3 $2 {[%emt 0:00:01]} (43. Bb6 $18 {[%cal Oc2c4] Hoping for c4!} a4 44. b4) 43... Nxc5 $11 {[%emt 0:00:04]} 44. dxc5 {[%emt 0:00:01]} Ke6 {[%emt 0:00:01]} 45. Bf1 {[%emt 0:00:34]} Ke5 {[%emt 0:00:02]} 46. Na2 {[%emt 0:00:01]} Kd4 {[%emt 0:00:03]} 47. c3+ {[%emt 0:00:14]} Kxc5 {[%emt 0:00:02]} 48. Kd2 {[%emt 0:00:01]} Ne6 {[%emt 0:00:02]} 49. Nc1 {[%emt 0:00:02]} Kd6 {[%emt 0:00:03]} 50. Ke3 {[%emt 0:00:04]} Bd7 {[%emt 0:00:03]} 51. Bd3 {[%emt 0:00:11]} (51. Ne2 $11) 51... Nf4 $17 {[%emt 0:00:03]} 52. Bf1 {[%emt 0:00:00]} Ng6 {[%emt 0:00:03]} ({Black should play} 52... Be6 $15) 53. Kd4 {[%emt 0:00:05]} f5 {[%emt 0:00:05]} 54. gxf5 $1 {[%emt 0:00:05]} Bxf5 {[%emt 0:00:00]} 55. c4 {[%emt 0:00:01]} dxc4 {[%emt 0:00:01]} 56. bxc4 {[%emt 0:00:00]} Nf4 {[%emt 0:00:01]} 57. c5+ {[%emt 0:00:04]} Kc7 {[%emt 0:00:01]} (57... Kc6 $17 {[%cal Of5e6] Strongly threatening ...Be6!} 58. Nb3 a4 (58... Bxh3 59. Nxa5+ Kc7 60. Bxh3 $11)) 58. Bb5 {[%emt 0:00:06]} (58. Ke5 $11 Bxh3 59. Bxh3 Nxh3 60. Kf5) 58... Bxh3 {[%emt 0:00:04]} (58... Bd7 $15 59. Bxd7 Kxd7) 59. Nb3 $11 {[%emt 0:00:02]} Bd7 {[%emt 0:00:07]} 60. Bxd7 {[%emt 0:00:02]} Kxd7 {[%emt 0:00:00]} 61. Nxa5 {[%emt 0:00:00]} Ne6+ {[%emt 0:00:01]} 62. Ke4 {[%emt 0:00:01]} Nxc5+ {[%emt 0:00:00]} 63. Kf5 {[%emt 0:00:01]} g4 {[%emt 0:00:00]} 64. Kxg4 {[%emt 0:00:01]} 1/2-1/2

[Event "CCT Julius Baer-D3 2024"]
[Site "Online"]
[Date "2024.09.27"]
[Round "2"]
[White "Keymer, Vincent"]
[Black "Santos Latasa, Jaime"]
[Result "1-0"]
[ECO "A17"]
[WhiteElo "2730"]
[BlackElo "2624"]
[Annotator "TA"]
[PlyCount "89"]
[EventDate "2024.09.25"]
[EventType "swiss"]
[EventCountry "NET"]
[SourceTitle "playchess.com"]
[Source "ChessBase"]
[SourceQuality "1"]
[TimeControl "600+2"]

{[%evp 9,89,12,14,0,7,-4,-10,-13,0,0,41,49,49,30,40,62,51,50,91,91,84,75,99,17,104,106,91,97,97,96,105,110,96,84,120,105,141,132,133,125,165,133,218,241,227,235,238,250,244,245,235,208,269,273,1000,1000,1558,7771,6193,6193,6315,2618,29977,29970,29971,29974,29974,29975,29975,29976,29976,29977,29977,29978,29978,29979,29979,29980,29980,29981,29981,29982]} 1. Nf3 {[%emt 0:00:02]} d5 {[%emt 0:00:05]} 2. e3 {[%emt 0:00:02]} Nf6 {[%emt 0:00:01]} 3. c4 {[%emt 0:00:00]} e6 {[%emt 0:00:01]} 4. Nc3 {[%emt 0:00:01]} dxc4 {[%emt 0:00:21]} 5. Bxc4 {[%emt 0:00:01]} a6 {[%emt 0:00:01]} 6. e4 {[%emt 0:00:00]} b5 {[%emt 0:00:08]} 7. Bb3 {[%emt 0:00:01]} Bb7 {[%emt 0:00:10]} 8. e5 {[%emt 0:00:02] The position is equal.} Nd5 {[%emt 0:00:03]} 9. d4 {[%emt 0:00:05]} c5 {[%emt 0:00:12]} 10. Bxd5 {[%emt 0:00:02]} Bxd5 {[%emt 0:00:06]} 11. Bg5 {[%emt 0:00:01]} Qd7 {[%emt 0:00:07]} 12. Nxd5 {[%emt 0:00:06]} Qxd5 {[%emt 0:00:04]} 13. dxc5 {[%emt 0:00:03]} Bxc5 {[%emt 0:01:00]} 14. Qxd5 {[%emt 0:00:04]} exd5 {[%emt 0:00:00]} 15. Rd1 {[%emt 0:00:06]} Nc6 {[%emt 0:00:07]} 16. Rxd5 {[%emt 0:00:34]} (16. Rc1 $16 Bb4+ 17. Ke2) 16... Be7 {[%emt 0:00:02]} (16... Nb4 $1 $11 {remains equal.} 17. Rd1 (17. Rxc5 Nd3+ 18. Ke2 Nxc5 $17) 17... h6) 17. Bxe7 $16 {[%emt 0:00:21] Black is on the road to losing.} Kxe7 {[%emt 0:00:01]} 18. Ke2 {[%emt 0:00:02]} Rac8 {[%emt 0:00:08]} 19. Rhd1 {[%emt 0:00:27]} Rhd8 {[%emt 0:00:06] Dodges Rd7+} 20. Rxd8 {[%emt 0:02:00]} Nxd8 {[%emt 0:00:00][%mdl 4096] Endgame. KRN-KRN} 21. Nd4 {[%emt 0:00:16] White is more active.} g6 {[%emt 0:00:09]} 22. f4 {[%emt 0:00:04]} Rc4 {[%emt 0:00:08]} 23. b3 {[%emt 0:00:06]} Rc5 {[%emt 0:00:04]} 24. Ke3 {[%emt 0:00:07]} b4 {[%emt 0:00:20]} 25. g3 {[%emt 0:00:22]} Nb7 {[%emt 0:00:17]} (25... Ne6 $16 {keeps fighting.} 26. Nxe6 fxe6) 26. Kd2 $18 {[%emt 0:00:28]} Nd8 {[%emt 0:00:48] [#]} 27. Rc1 $1 {[%emt 0:00:06]} Ra5 {[%emt 0:00:12]} 28. Rc2 {[%emt 0:00:09]} Kd7 {[%emt 0:00:06]} 29. Ke3 {[%emt 0:00:09]} Ne6 {[%emt 0:00:46]} 30. Nxe6 {[%emt 0:00:04]} fxe6 {[%emt 0:00:15] KR-KR} 31. g4 {[%emt 0:00:02]} Rd5 $2 {[%emt 0:00:08] [#]} (31... Rb5 32. Rc4 h5) 32. Rd2 {[%emt 0:00:42]} Kc6 {[%emt 0:00:07]} 33. Rxd5 {[%emt 0:00:01]} Kxd5 {[%emt 0:00:00] KP-KP} 34. h4 {[%emt 0:00:09]} a5 {[%emt 0:00:13]} 35. Kd3 {[%emt 0:00:01]} h6 {[%emt 0:00:02]} 36. Ke3 {[%emt 0:00:00] White mates.} g5 {[%emt 0:00:21]} 37. fxg5 {[%emt 0:00:16]} hxg5 {[%emt 0:00:02]} 38. hxg5 {[%emt 0:00:01]} Kxe5 {[%emt 0:00:01]} 39. Kd3 {[%emt 0:00:04]} Kd6 {[%emt 0:00:04]} 40. Ke4 {[%emt 0:00:02]} Ke7 {[%emt 0:00:01]} 41. Ke5 {[%emt 0:00:03]} Kf7 {[%emt 0:00:01]} 42. Kd6 {[%emt 0:00:05]} Kg6 {[%emt 0:00:01]} 43. Kxe6 {[%emt 0:00:00]} Kxg5 {[%emt 0:00:01]} 44. Kd5 {[%emt 0:00:01]} Kxg4 {[%emt 0:00:00]} 45. Kc5 {[%emt 0:00:00] Weighted Error Value: White=0.07 (flawless) /Black=0.34.  Mistake:       	White=1     	Black=3      Inaccurate:     	---       	Black=6      OK:         	White=16    	Black=3      Best:        	White=2     	---} 1-0

[Event "CCT Julius Baer-D3 2024"]
[Site "Online"]
[Date "2024.09.27"]
[Round "2"]
[White "Navara, David"]
[Black "Bharath Subramaniyam H"]
[Result "1/2-1/2"]
[ECO "E44"]
[WhiteElo "2681"]
[BlackElo "2561"]
[Annotator "TA"]
[PlyCount "168"]
[EventDate "2024.09.25"]
[EventType "swiss"]
[EventCountry "NET"]
[SourceTitle "playchess.com"]
[Source "ChessBase"]
[SourceQuality "1"]
[TimeControl "600+2"]

{[%evp 16,168,0,14,16,0,8,9,12,0,0,2,0,0,0,0,0,-10,-22,-72,-51,-79,-83,-110,-112,-124,-25,-29,47,60,48,40,116,125,110,81,117,62,59,61,93,92,85,90,97,104,93,104,89,101,98,86,83,87,95,97,100,0,24,22,22,25,14,18,28,0,22,23,20,16,15,18,16,19,27,15,24,8,36,35,146,19,29,-8,0,-18,-20,-89,0,-43,-8,-8,-12,-29969,0,0,0,0,33,15,45,44,45,45,46,50,50,50,51,49,69,64,69,69,69,69,69,36,41,36,36,8,8,8,8,0,8,0,0,0,78,36,79,0,0,0,79,79,79,79,79,79,78,78,78,0,0,0,0,0,0,0,0,0,0]} 1. d4 {[%emt 0:00:02]} Nf6 {[%emt 0:00:04]} 2. c4 {[%emt 0:00:01]} e6 {[%emt 0:00:01]} 3. Nc3 {[%emt 0:00:01]} Bb4 {[%emt 0:00:01]} 4. e3 {[%emt 0:00:01]} b6 {[%emt 0:00:02]} 5. Nge2 {[%emt 0:00:05]} Ne4 {[%emt 0:00:02]} 6. Qc2 {[%emt 0:00:05]} Bb7 {[%emt 0:00:01]} 7. a3 {[%emt 0:00:04]} Bxc3+ {[%emt 0:00:02]} 8. Nxc3 {[%emt 0:00:00]} Nxc3 {[%emt 0:00:00]} 9. Qxc3 {[%emt 0:00:00]} d6 {[%emt 0:00:08]} 10. h4 {[%emt 0:00:20]} Nd7 {[%emt 0:00:31]} 11. f3 {[%emt 0:00:28]} e5 {[%emt 0:00:48]} 12. b4 {[%emt 0:01:17]} O-O {[%emt 0:00:29]} 13. Bb2 {[%emt 0:00:13]} Qe7 {[%emt 0:00:03]} 14. dxe5 {[%emt 0:00:20]} dxe5 {[%emt 0:00:08]} 15. h5 {[%emt 0:01:01]} h6 {[%emt 0:00:14]} 16. c5 {[%emt 0:00:40]} bxc5 {[%emt 0:00:51]} 17. bxc5 {[%emt 0:00:00]} (17. Bb5 $11) 17... Bc6 $17 {[%emt 0:00:04][%cal Oa8b8]} (17... Nxc5 $6 18. Qxe5 Qxe5 19. Bxe5 $14) 18. e4 {[%emt 0:00:32]} Rab8 {[%emt 0:00:18][%cal Oe7g5]} (18... Nxc5 $2 19. Rc1 Ne6 (19... Na4 $2 20. Qxe5 Qxe5 21. Bxe5 $18) 20. Qxc6 $18) (18... f5 {simplifies} 19. Bc4+ Kh8 20. Bd5 Bxd5 21. exd5 Qxc5 22. Qxc5 Nxc5 23. Rd1 e4) 19. Rc1 {[%emt 0:00:09]} Qg5 {[%emt 0:01:11]} 20. Kf2 {[%emt 0:00:53] [#] Inhibits Qg3+.} Nxc5 {[%emt 0:01:03]} 21. Rc2 $11 {[%emt 0:00:26] [#]} (21. Be2 Bd7 22. Qxe5 (22. Qxc5 Rxb2 23. Rc2 Rfb8 $19) 22... Nd3+ 23. Bxd3 Qd2+ 24. Be2 Rxb2 $17) 21... Bxe4 $1 {[%emt 0:01:25]} 22. Qxc5 $14 {[%emt 0:00:02]} Bxc2 {[%emt 0:00:02]} 23. Qxc2 {[%emt 0:00:00][%cal Ob2c1]} Rfd8 {[%emt 0:00:06]} (23... e4 $14 24. Bc1 (24. fxe4 Qf4+ 25. Kg1 Qe3+ 26. Kh2 Rfe8 $17) 24... Qf6) 24. Bc1 $1 $16 {[%emt 0:00:19][%mdl 1024] White has strong compensation.} Qf6 {[%emt 0:00:17][%cal Oe5e4]} 25. Be2 {[%emt 0:00:19][%cal Oe2d3]} (25. Qxc7 $2 Rbc8 $19) 25... Qe7 {[%emt 0:00:50]} 26. a4 {[%emt 0:00:36]} ({White should try} 26. g3 $16) 26... Rd4 {[%emt 0:00:09]} 27. Be3 {[%emt 0:00:21]} Rh4 {[%emt 0:00:01]} 28. Rc1 {[%emt 0:01:05] Black is weak on the light squares} (28. Bxa7 $2 Rxh1 29. Qc3 Ra8 $19) 28... Rxh5 {[%emt 0:00:05]} 29. Qxc7 {[%emt 0:00:18]} (29. Bxa7 $6 Qh4+ 30. Kf1 Qf4 $11) 29... Qh4+ {[%emt 0:00:05]} 30. Kf1 {[%emt 0:00:01] White is much more active.} Rb2 {[%emt 0:00:30]} 31. Qc8+ {[%emt 0:00:43]} (31. Qxa7 Qh1+ 32. Bg1 Rg5 33. Qa8+ Kh7 $16) (31. Bxa7 $6 Qg5 32. Rc2 (32. Qc8+ Kh7 $11) 32... Rb1+ (32... Rh1+ 33. Kf2 $11) 33. Kf2 Qh4+ 34. Ke3 Qf4+ 35. Kf2 Qh4+ 36. Ke3 Qf4+ 37. Kf2 Qh4+ $11) 31... Kh7 {[%emt 0:00:01]} 32. Bd3+ {[%emt 0:00:00]} (32. Bxa7 $6 Qg5 33. Re1 Rh1+ 34. Bg1 h5 $11) 32... g6 {[%emt 0:00:27] [#]} 33. Bxg6+ $1 {[%emt 0:00:01]} Kg7 {[%emt 0:00:13] ( -> ...Qh1+)} (33... Kxg6 34. Qg8+ Kf6 35. Rc6+ (35. Bxa7 Qxa4 36. Qh8+ Ke6 $11) 35... Ke7 36. Bc5+ Kd7 37. Qc8#) 34. Bc2 {[%emt 0:00:06][%cal Oc8c3] The board is on fire. A strong pair of Bishops.} (34. Bxh5 $2 Qh1+ 35. Bg1 Qxg2+ 36. Ke1 Qxg1#) 34... Qh1+ {[%emt 0:00:17]} 35. Kf2 {[%emt 0:00:20]} Qh4+ {[%emt 0:00:02]} 36. Kf1 {[%emt 0:00:01]} (36. Ke2 $16 Qxa4 37. Qg4+ Qxg4 38. fxg4) 36... Qh1+ $11 {[%emt 0:00:02]} 37. Bg1 {[%emt 0:00:03]} (37. Kf2 $6 Qh4+ 38. Ke2 Qxa4 $16) 37... Rg5 {[%emt 0:00:03]} 38. Qh3 {[%emt 0:00:01]} Qxh3 {[%emt 0:00:03]} 39. gxh3 {[%emt 0:00:00][%cal Og1f2] Black must now prevent Bf2!} Rg3 {[%emt 0:00:18]} 40. Be4 {[%emt 0:00:21]} (40. Bxa7 Rxf3+ 41. Ke1 Rxh3 $17) 40... a6 {[%emt 0:00:11]} 41. Bf2 {[%emt 0:00:06]} Rxh3 {[%emt 0:00:03]} 42. Kg2 {[%emt 0:00:01]} Rh5 {[%emt 0:00:01]} 43. Rc2 {[%emt 0:00:02]} Rg5+ {[%emt 0:00:02]} 44. Kf1 {[%emt 0:00:02]} Rb1+ {[%emt 0:00:09]} (44... Rxc2 45. Bxc2 f5 46. Bd3 $18) 45. Ke2 {[%emt 0:00:01]} Ra1 {[%emt 0:00:01]} 46. Bc6 {[%emt 0:00:03][%cal Of3f4]} Rg6 {[%emt 0:00:01]} 47. f4 {[%emt 0:00:02]} Re6 {[%emt 0:00:05] [#]} (47... f6 $14) 48. Bd5 {[%emt 0:00:02]} (48. fxe5 $1 $16 {aiming for Bd4.} Rxe5+ 49. Kd2) 48... Rd6 {[%emt 0:00:02]} 49. Bc4 {[%emt 0:00:02]} (49. fxe5 $2 Rxd5 50. Bg3 Rxa4 $19) 49... exf4 {[%emt 0:00:02]} 50. Kf3 {[%emt 0:00:03]} Rxa4 {[%emt 0:00:02]} 51. Be2 {[%emt 0:00:02]} (51. Bc5 $1 $11 Rg6 52. Bd4+ f6 53. Bf2) 51... Rf6 {[%emt 0:00:03]} (51... Ra3+ $17 52. Kg4 h5+ 53. Kh4 f3) 52. Be1 {[%emt 0:00:01]} Rg6 {[%emt 0:00:04]} 53. Rc7 {[%emt 0:00:02]} Ra3+ {[%emt 0:00:01]} 54. Bc3+ $2 {[%emt 0:00:02][%mdl 8192]} (54. Kf2 $11) 54... Kf8 $2 {[%emt 0:00:02]} (54... Rxc3+ $1 {mates} 55. Rxc3 Rg3+ 56. Kxf4 Rxc3 57. Bxa6 Kg6 58. Kg4 h5+ 59. Kh4 Rb3 60. Bc8 Rb4+ 61. Kh3 f5 62. Kh2 h4 63. Kg2 Kg5 64. Bd7 Rb3 (64... Kg4 {leads to mate.} 65. Kf2 h3 66. Bc6 Re4 67. Bxe4 fxe4 68. Ke3 h2 69. Kxe4 h1=Q+ 70. Kd4 Qc6 71. Ke5 Qc5+ 72. Ke4 Kg3 73. Kd3 Kf3 74. Kd2 Qc4 75. Kd1 Ke3 76. Ke1 Qe2#) 65. Bc6 Kg4 66. Kf2 h3 (66... Rb2+ 67. Ke3 h3 68. Bf3+ Kg3 69. Bd5 h2 70. Kd3 Rg2 71. Bxg2 Kxg2 72. Ke3 Kg3 73. Kd4 f4 74. Ke5 f3 75. Kf6 h1=Q 76. Kg6 f2 77. Kf6 f1=Q+ 78. Ke5 Qf4+ 79. Ke6 Qc6+ 80. Ke7 Qff6#) 67. Bd5 Rb2+ 68. Ke3 f4+ 69. Kd3 f3 70. Be6+ Kg3 71. Kc3 Re2 (71... h2 72. Kxb2 f2 73. Bd5 f1=Q 74. Kc3 h1=Q 75. Bxh1 Qxh1 76. Kd4 Qc6 77. Ke5 Qd7 78. Ke4 Qd6 79. Ke3 Qd5 80. Ke2 Qd4 81. Ke1 Kf3 82. Kf1 Qf2#) 72. Bd5 f2 (72... h2 {gets mated.} 73. Kd4 h1=Q 74. Bc4 Qd1+ 75. Kc5 Rc2 76. Kb5 f2 77. Bg8 f1=Q+ 78. Ka5 Qa1+ 79. Kb4 Qf8+ 80. Kb5 Qc5#) 73. Kc4 f1=Q (73... f1=B 74. Kb3 Bg2 75. Bg8 h2 76. Bc4 Re7 77. Kc3 h1=Q 78. Bd3 Qc1+ 79. Bc2 Rc7+ 80. Kb4 Rxc2 81. Ka5 Qb1 82. Ka6 Ra2#) 74. Kc5 Rc2+ (74... Qc1+ 75. Kd6 h2 76. Bc6 Qa3+ 77. Kd7 Qa7+ 78. Kd8 Re7 79. Bb7 Rxb7 80. Ke8 Rb8#) 75. Kb4 Qf8+ 76. Kb3 Qc5 (76... Qf2 77. Be4 h2 78. Bxc2 h1=Q 79. Bd3 Qb7+ 80. Kc4 Qfb2 81. Bg6 Q7b5#) 77. Bf7 Rc3+ 78. Ka2 Qa3+ 79. Kb1 Rc1#) 55. Kxf4 {[%emt 0:00:01]} Ra4+ {[%emt 0:00:01]} 56. Bc4 {[%emt 0:00:03][%cal Of4e5]} Re6 {[%emt 0:00:02]} 57. Kf3 {[%emt 0:00:02]} Rxc4 {[%emt 0:00:01]} 58. Rxc4 {[%emt 0:00:00][%mdl 4096] Endgame. KRB-KR} Ke7 {[%emt 0:00:01]} 59. Rc7+ {[%emt 0:00:01]} Ke8 {[%emt 0:00:01]} 60. Kf4 {[%emt 0:00:03]} Kf8 {[%emt 0:00:00]} 61. Kf5 {[%emt 0:00:02]} Ke8 {[%emt 0:00:01]} 62. Bf6 {[%emt 0:00:01]} Kf8 {[%emt 0:00:04]} 63. Rc8+ {[%emt 0:00:03]} Re8 {[%emt 0:00:01] [#]} 64. Bg7+ $1 {[%emt 0:00:00]} Ke7 $1 {[%emt 0:00:00]} 65. Rc7+ {[%emt 0:00:01]} ({Reject} 65. Rxe8+ Kxe8 66. Bxh6 a5 $11) 65... Kd6 {[%emt 0:00:00]} 66. Rxf7 {[%emt 0:00:02]} Kc6 {[%emt 0:00:01]} 67. Bxh6 {[%emt 0:00:02]} a5 {[%emt 0:00:01]} 68. Bg7 {[%emt 0:00:02]} Kb5 {[%emt 0:00:02]} 69. Be5 {[%emt 0:00:01]} a4 {[%emt 0:00:01]} 70. Ke4 {[%emt 0:00:01]} Rd8 {[%emt 0:00:01]} 71. Bd4 {[%emt 0:00:02]} a3 {[%emt 0:00:14]} 72. Kd3 {[%emt 0:00:03]} Ra8 {[%emt 0:00:01]} (72... Kb4 $11) 73. Rf5+ {[%emt 0:00:06]} Kc6 {[%emt 0:00:01]} 74. Kc4 {[%emt 0:00:02]} (74. Ba1 $16) 74... Ra4+ $1 {[%emt 0:00:03]} 75. Kd3 {[%emt 0:00:03]} a2 {[%emt 0:00:00]} (75... Ra8 $1 $11 {keeps the balance.}) 76. Ba1 $16 {[%emt 0:00:00]} Kb6 {[%emt 0:00:05]} 77. Kc3 {[%emt 0:00:02]} Ra8 {[%emt 0:00:00]} 78. Kb3 {[%emt 0:00:02]} Kc6 {[%emt 0:00:01]} 79. Kb4 {[%emt 0:00:02]} Kd6 {[%emt 0:00:01]} 80. Rf1 {[%emt 0:00:03]} (80. Rf4 $16) 80... Rb8+ $11 {[%emt 0:00:01] The position is equal.} 81. Ka3 {[%emt 0:00:04]} Rb1 {[%emt 0:00:01]} 82. Rf6+ {[%emt 0:00:01]} Ke7 {[%emt 0:00:01]} 83. Kxa2 {[%emt 0:00:02]} Rxa1+ $1 {[%emt 0:00:00]} 84. Kxa1 {[%emt 0:00:00]} Kxf6 {[%emt 0:00:01] Weighted Error Value: White=0.23 (precise) /Black=0.26 (precise) .  Loses game:     	White=1     	---        Missed win:     	---       	Black=1      Mistake:       	White=7     	Black=7      Inaccurate:     	White=8     	Black=7      OK:         	White=26    	Black=27     Best:        	White=7     	Black=7      Strong:       	White=1     	Black=3      Brilliant:      	White=1     	---} 1/2-1/2